Workbook

Sheet 說明
A1: 預 算 說 明 書
A2: 104學年度
F3: 全1頁第1頁
A4: 一、學校組織及職掌：依據本校組織規程
A6: 二、重要校務計畫：
A7: (一)校長室
A8: 1.持續發展高品質的課堂教學,建立沉靜的師生協同學習文化。
A9: 2.中階領導人才工作思維效能訓練與職務輪調培訓。
A10: 3.學校全年度行事活動重新整合編排。
A11: 4.TLIM融於聖心教育核心目標的適切實施。
A12: 5.因應105校務評鑑的策略準備。
A13: (二)教務處:
A14: 1.教師做為專家的成長,內涵--有效教學與同僚性的持續建構、教材自選啟動、評量與命
A15: 題轉型,課例研究與發展。
A16: 2.有效協助各領域教學發展、年度課發會定期召開預備。
A17: 3.國際教育開展階段計劃架構。
A18: 4.學校英語教學整體預備發展方向規劃準備。
A19: (三)學務處(包含宗輔):
A20: 1.維護學校重視生活與安全衛生教育、重視即時有效溝通，達致教育成效的既成果實。
A21: 2.教師做為輔導第一線的知能建構。
A22: 3.學校索菲課程、宗輔活動與情境佈置的整合發展。
A23: (四)總務處:
A24: 1.學校建築調整與興建案執行管制。
A25: 2.廚房管理提升改善小組成立。
A26: 3.教學大樓持續節能精進作法規劃。
A28: 三、收入預算說明：收入以學生的學雜費為主,捐贈及補助,其他收入為輔。
A30: 四、支出預算說明：支出以人事費佔絕大百分比
A32: 五、重要固定資產增置計畫說明：幼園教室室內裝修、活動中心樑端整建、處室及班級
A33: 冷氣、飲水機、視力檢查器材
A35: 六、其他必要說明事項：
A39: 1
A45: 財團法人新北市私立聖心國民小學
A46: 預 算 說 明 書
A47: 104學年度
F48: 全1頁第1頁
A66: 三、收入預算說明：收入以學生的學雜費為主,捐贈及補助,其他收入為輔。
A70: 四、支出預算說明：支出以人事費佔絕大百分比
A72: 五、重要固定資產增置計畫說明：娃娃車,部分處室&班級冷氣、電腦、飲水機、會議室長桌，座椅更換。
A76: 六、其他必要說明事項：
A78: 1

Sheet 餘絀
A1: 財團法人新北市私立聖心國民小學
A2: 收 支 餘 絀 預 計 表
A3: 104學年度
E4: 單位:新台幣元
A5: 前年度 | B5: 科 目 | C5: 本年度 | D5: 上年度 | E5: 比較增減
A6: 決算數 | C6: 預算數 | D6: 估計決算數 | E6: 金 額 | F6: %
A7: =SUM(A8:A11) -> 58798290 | B7: 收 入： | C7: =SUM(C8:C11) -> 59715000 | D7: =SUM(D8:D11) -> 58607107 | E7: =C7-D7 -> 1107893 | F7: =E7/D7% -> 1.890373125
A8: 29120333 | B8: 學雜費收入 | C8: 29865000 | D8: 29857107 | E8: 7893 | F8: =E8/D8% -> 0.02643591692
A9: 3656773 | B9: 補助及捐贈收入 | C9: 2600000 | D9: 2600000 | E9: 0 | F9: =E9/D9% -> 0
A10: 1262171 | B10: 財務收入 | C10: 1250000 | D10: 1150000 | E10: 100000 | F10: =E10/D10% -> 8.695652174
A11: 24759013 | B11: 其他收入 | C11: 26000000 | D11: 25000000 | E11: 1000000 | F11: =E11/D11% -> 4
A13: 46348165 | B13: 支 出： | C13: =SUM(C14:C18) -> 46048000 | D13: =SUM(D14:D18) -> 45463000 | E13: 585000 | F13: =E13/D13% -> 1.286760663
A14: 54000 | B14: 董事會支出 | C14: 68000 | D14: 63000 | E14: 5000 | F14: 7.936507937
A15: 10725012 | B15: 行政管理支出 | C15: 9780000 | D15: 10280000 | E15: -500000 | F15: -4.86381323
A16: 34864665 | B16: 教學研究及訓輔支出 | C16: 35450000 | D16: 34200000 | E16: 1250000 | F16: 3.65497076
A17: 0 | B17: 獎助學金支出 | C17: 150000 | D17: 0 | E17: 150000 | F17: 0
A18: 704488 | B18: 其他支出 | C18: 600000 | D18: 920000 | E18: -320000 | F18: -34.7826087
A20: =A7-A13 -> 12450125 | B20: 本年度純餘(絀) | C20: =C7-C13 -> 13667000 | D20: =D7-D13 -> 13144107 | E20: 522893 | F20: =E20/D20% -> 3.978155382
A30: 2

Sheet 固定資產
A1: 財團法人新北市私立聖心國民小學
A2: 預計固定資產及無形資產變動表
A3: 104學年度
E4: 單位:新台幣元
A5: 科目名稱 | B5: 估計本年初 | C5: 本年度預計 | D5: 本年度預計 | E5: 截止本年底止 | F5: 說 明
B6: 結 存 金 額 | C6: 增 加 金 額 | D6: 減 少 金 額 | E6: 預計結存金額
A7: 固定資產 | B7: 152582169 | C7: 11590000 | D7: 2100000 | E7: 162072169
A8: 土地 | B8: 156166 | D8: 0 | E8: =B8+C8-D8 -> 156166
A9: 土地改良物 | B9: 157825 | D9: 0 | E9: 157825
A10: 房屋及建築 | B10: 119410501 | C10: 10400000 | D10: 0 | E10: 129810501 | F10: 教室裝潢
A11: 機械儀器及設備 | B11: 12920370 | C11: 0 | D11: 900000 | E11: 12020370
A12: 圖書及博物 | B12: 195353 | D12: 0 | E12: 195353
A13: 其他設備 | B13: 19741954 | C13: 1190000 | D13: 1200000 | E13: 19731954
A14: 預付土地、工程及設備款 | B14: 0 | C14: 0 | D14: 0 | E14: 0
A15: 無形資產 | B15: =SUM(B16:B19) -> 4320 | C15: =SUM(C16:C19) -> 0 | D15: =SUM(D16:D19) -> 0 | E15: =SUM(E16:E19) -> 4320
A16: 專利權 | B16: 0 | C16: 0 | D16: 0 | E16: =B16+C16-D16 -> 0
A17: 電腦軟體 | B17: 4320 | E17: =B17+C17-D17 -> 4320
A18: 租賃權益 | E18: =B18+C18-D18 -> 0
A19: 其他無形資產 | E19: =B19+C19-D19 -> 0
A20: 固定資產及無形資產合計 | B20: 152586489 | C20: 11590000 | D20: 2100000 | E20: =B20+C20-D20 -> 162076489
A29: 3

Sheet 資產
A1: 財團法人新北市私立聖心國民小學
A2: 預計增置重要固定資產及無形資產明細表
A3: 104學年度
E4: 全1頁第1頁
E5: 單位:新台幣元
A6: 科目及重要固定資產名稱 | B6: 提出單位 | C6: 數量 | D6: 單 價 | E6: 總 價 | F6: 備 註
A7: 房屋建築及設備
A8: 教室室內裝潢裝修 | B8: 總務處 | C8: 1 | D8: 9500000 | E8: 9500000
A9: 活動中心房屋樑端整建 | B9: 總務處 | C9: 1 | D9: 900000 | E9: 900000
A11: 其他設備
A12: 飲水機 | B12: 總務處 | C12: 6 | D12: 35000 | E12: 210000
A13: 冷氣 | B13: 總務處 | C13: 12 | D13: 65000 | E13: 780000
A14: 視力檢查器材 | B14: 學務處 | C14: 1 | D14: 200000 | E14: 200000
A22: 4

Sheet 收入
A1: 財團法人新北市私立聖心國民小學
A2: 收入預算明細表
A3: 104學年度
G4: 全1頁第1頁
G5: 單位:新台幣元
A6: 前年度決算數 | B6: 科 目 | D6: (本)年度 預算數 | E6: 估計(上)年度決算數 | F6: (本)年度預算與估計 (上)年度決算比較 | H6: 說明
B8: 編號 | C8: 名 稱 | F8: 差異 | G8: ％
A9: 29120333 | B9: 4110 | C9: 學雜費收入 | D9: 29865000 | E9: 29857107 | F9: =(D9-E9) -> 7893 | G9: =F9/E9% -> 0.02643591692
A10: 29120333 | B10: 4111 | C10: 雜費收入 | D10: 29865000 | E10: 29857107 | F10: =(D10-E10) -> 7893 | G10: 0.02643591692
F11: 0
A12: 3656773 | B12: 4150 | C12: 補助及捐贈收入 | D12: 2600000 | E12: 2600000 | F12: 0 | G12: 0
A13: 2447436 | B13: 4151 | C13: 補助收入 | D13: 2350000 | E13: 2350000 | F13: 0 | G13: 0
A14: 1209337 | B14: 4152 | C14: 捐助收入 | D14: 250000 | E14: 250000 | F14: 0 | G14: 0
A15: 1262171 | B15: 4170 | C15: 財務收入 | D15: 1250000 | E15: 1150000 | F15: 100000 | G15: 8.695652174
A16: 1262171 | B16: 4171 | C16: 利息收入 | D16: 1250000 | E16: 1150000 | F16: 100000 | G16: 8.695652174
B17: 4173 | C17: 基金收益 | D17: 0 | E17: 0 | F17: 0
A18: 24759013 | B18: 4190 | C18: 其他收入 | D18: 26000000 | E18: 25000000 | F18: 1000000 | G18: 4
A19: 24759013 | B19: 4199 | C19: 雜項收入 | D19: 26000000 | E19: 25000000 | F19: 1000000 | G19: 4
F20: 0
A21: =A9+A12+A15+A18 -> 58798290 | C21: 合 計 | D21: =SUM(D9+D12+D15+D18) -> 59715000 | E21: =SUM(E9+E12+E15+E18) -> 58607107 | F21: 1107893 | G21: 1.890373125
A22: 學雜費收入說明：
A23: 收 費 文 號：新北教中字第1040711983號
A24: 4110 雜 費 收 入：國小 $22,625×660人×2學期=$ 29,865,000
A36: 5

Sheet 支出
A1: 財團法人新北市私立聖心國民小學
A2: 支出預算明細表
A3: 104學年度
G4: 全1頁第1頁
G5: 單位:新台幣元
A6: 前年度決算數 | B6: 科目 | D6: (本)年度 預算數 | E6: 估計(上)年度決算數 | F6: (本)年度預算與估計 (上)年度決算比較 | H6: 說明
B8: 編號 | C8: 名稱 | F8: 差異 | G8: ％
A9: 54000 | B9: 5110 | C9: 董事會支出 | D9: 68000 | E9: 63000 | F9: =D9-E9 -> 5000 | G9: =F9/E9% -> 7.936507937
A10: 54000 | B10: 5112 | C10: 業務費 | D10: 5000 | E10: 3000 | F10: 2000 | G10: 66.66666667 | H10: 會議雜支
B11: 5115 | C11: 出席及交通費 | D11: 63000 | E11: 60000 | F11: 3000 | G11: 5
A12: 10725012 | B12: 5120 | C12: 行政管理支出 | D12: 9780000 | E12: 10280000 | F12: =D12-E12 -> -500000 | G12: =F12/E12% -> -4.86381323
A13: 7267711 | B13: 5121 | C13: 人事費 | D13: 6600000 | E13: 6750000 | F13: -150000 | G13: -2.222222222
A14: 1834045 | B14: 5122 | C14: 業務費 | D14: 1850000 | E14: 1750000 | F14: 100000 | G14: 5.714285714
A15: 257899 | B15: 5123 | C15: 維護費 | D15: 480000 | E15: 450000 | F15: 30000 | G15: 6.666666667
A16: 221399 | B16: 5124 | C16: 退休撫卹費 | D16: 250000 | E16: 230000 | F16: 20000 | G16: 8.695652174
A17: 1143958 | B17: 5125 | C17: 折舊及攤銷費 | D17: 600000 | E17: 1100000 | F17: -500000 | G17: -45.45454545 | H17: 預估減少報廢
A18: 34864665 | B18: 5130 | C18: 教學研究及訓輔支出 | D18: 35450000 | E18: 34200000 | F18: 1250000 | G18: 3.65497076
A19: 27801501 | B19: 5131 | C19: 人事費 | D19: 28250000 | E19: 26800000 | F19: 1450000 | G19: 5.410447761
A20: 2666003 | B20: 5132 | C20: 業務費 | D20: 2750000 | E20: 2650000 | F20: 100000 | G20: 3.773584906
A21: 1213770 | B21: 5133 | C21: 維護費 | D21: 1800000 | E21: 1450000 | F21: 350000 | G21: 24.13793103 | H21: 1樓廁所整修維護
A22: 875375 | B22: 5134 | C22: 退休撫卹費 | D22: 1150000 | E22: 1000000 | F22: 150000 | G22: 15 | H22: 增加專任教師
A23: 2308016 | B23: 5135 | C23: 折舊及攤銷費 | D23: 1500000 | E23: 2300000 | F23: -800000 | G23: -34.7826087 | H23: 預估減少報廢
A24: 0 | B24: 5140 | C24: 獎助學金支出 | D24: 150000 | E24: 0 | F24: =D24-E24 -> 150000 | G24: 0 | H24: 未有申請
A25: 704488 | B25: 51A0 | C25: 其他支出 | D25: 600000 | E25: 920000 | F25: =D25-E25 -> -320000 | G25: =F25/E25% -> -34.7826087 | H25: 50校慶完成,支出少
A27: =A9+A12+A18+A24+A25 -> 46348165 | C27: 支 出 合 計 | D27: =D9+D12+D18+D24+D25 -> 46048000 | E27: =E9+E12+E18+E24+E25 -> 45463000 | F27: =D27-E27 -> 585000 | G27: =F27/E27% -> 1.286760663
A34: 6

Sheet 封底
B5: 製 表: | C5: 梅 惠 君
B14: 主辦會計: | C14: 梅 惠 君
B23: 校 長: | C23: 畢 明 德
B32: 董 事 長: | C32: 熊 名 昭

Sheet 目錄
A1: 財團法人新北市私立聖心國民小學
A2: 預 算 目 錄
A3: 104學年度
A4: 名 稱 | B4: 頁 次
A5: 預 算 說 明 書 | B5: 1
A6: 收 支 餘 絀 預 計 表 | B6: 2
A7: 預計固定資產及無形資產變動表 | B7: 3
A8: 預計增置重要固定資產及無形資產明細表 | B8: 4
A9: 收 入 預 算 明 細 表 | B9: 5
A10: 支 出 預 算 明 細 表 | B10: 6
A11: 借 入 款 項 變 動 表 | B11: 7

Sheet 借入款項變動表
A1: 財團法人新北市私立聖心國民小學
A2: 借入款項變動表
A3: 104學年度
E4: 單位:新台幣元
A5: 借款用途 | B5: 估計本年初 | C5: 本年度預計 | D5: 本年度預計 | E5: 期末預計金額 | F5: 備 註
B6: 決 算 金 額 | C6: 借入 金 額 | D6: 償還 金 額
A7: 無 | B7: 無 | C7: 無 | D7: 無 | E7: 無 | F7: 無
A20: 合計
A29: 7

Sheet 封面
A2: 財團法人新北市私立聖心國民小學
H4: 預算編號：104001
H5: 電話號碼：(02)26182330*105
H6: 郵遞區號： 249
H7: 學校所在地 | I7: ：新北市八里區
H8: 鄉鎮縣市名
H9: 傳真號碼：(02)26182282
A12: 104學年度
A14: (自104年8月1日起至105年7月31日止)
A19: 預 算 書
A34: 本件預算業經本校於104年6月26日第13屆第9次董事會審議通過，特此證明。
